{"text_format":"3","workbook":"xlsx","n_sheets":5,"sheets":["Summary of Cover","Rooms","Various 1 ","Bedrooms","Various 2"],"read":"whole","date_system":"1900"}

{"sheet":"Summary of Cover","index":0,"n_rows":39,"n_cols":12,"rows_kept":39,"merged":[[0,0,0,10],[2,0,2,10],[4,0,4,4],[4,5,4,10],[5,0,5,4],[5,5,5,10],[6,0,6,4],[6,5,6,10],[7,0,7,4],[7,5,7,10],[8,0,8,4],[8,5,8,10],[9,0,9,4],[9,5,9,10],[10,4,10,10],[11,7,12,9],[11,10,12,10],[13,0,13,10],[20,9,20,10],[22,0,22,4],[22,6,22,10],[23,0,25,4],[23,6,25,10],[27,0,27,4],[27,6,27,10],[28,0,29,4],[28,6,28,10],[29,6,29,10],[31,0,31,1],[31,2,31,4],[31,6,34,8],[31,9,34,10],[32,0,34,1],[32,2,34,4],[36,0,36,10]]}
["INSURANCE VALUED INVENTORY FORM FOR DOMESTIC/ INTERNATIONAL REMOVALS"]
[]
["Please see original document for full TERMS & CONDITIONS                                                                              "]
[]
["FILE NUMBER"]
["SURNAME"]
["ORIGIN "]
["DESTINATION "]
["BRANCH NAME"]
["PACKING DATE "]
[]
[{"$nulls":3},"Air","Road",null,"Sea","Insurance Rate "]
[]
["SUMMARY "]
[]
["A. HALL",{"$f":"(Rooms!C14)","v":0},null,"G. MISCELLANEOUS ",{"$f":"Rooms!K41","v":0},null,"M. HEAVY ITEMS",{"$f":"'Various 1 '!L30","v":0},null,"S. GARAGE",{"$f":"'Various 2'!C37","v":0}]
["B. STUDY ROOM",{"$f":"Rooms!C28","v":0},null,"H. MEN'S CLOTHING",{"$f":"'Various 1 '!C27","v":0},null,"N. MISCELLANEOUS",{"$f":"'Various 1 '!L59","v":0},null,"T. CELLAR",{"$f":"'Various 2'!C53","v":0}]
["C. DINING ROOM ",{"$f":"Rooms!C41","v":0},null,"I. WOMAN'S CLOTHING",{"$f":"'Various 1 '!C49","v":0},null,"O. MASTER BEDROOM",{"$f":"Bedrooms!C50","v":0},null,"U. SPORTS GEAR",{"$f":"'Various 2'!G25","v":0}]
["D. KITCHEN",{"$f":"Rooms!G28","v":0},null,"J. GENERAL",{"$f":"'Various 1 '!C59","v":0},null,"P. CHILD BEDROOM 1",{"$f":"Bedrooms!G50","v":0},null,"V. VEHICLES ETC",{"$f":"'Various 2'!F53:G53","v":0},0]
["E. BATHROOM ",{"$f":"Rooms!G41","v":0},null,"K. ELECTRIC APPLIANCES",{"$f":"'Various 1 '!G59","v":0},null,"Q. CHILD BEDROOM 2",{"$f":"Bedrooms!K50","v":0},null,"W. MISCELLANEOUS",{"$f":"'Various 2'!K53","v":0}]
["F. LIVING ROOM",{"$f":"Rooms!K30","v":0},null,"L. PRECIOUS ITEMS",{"$f":"'Various 1 '!L23","v":0},null,"R. GARDEN",{"$f":"'Various 2'!C24","v":0}]
[]
["CURRENCY OF INVENTORY ",{"$nulls":5},"TOTAL HOUSEHOLD GOODS",{"$nulls":4},"ZAR"]
[{"$f":"L23","v":"ZAR"},{"$nulls":5},{"$f":"B16+B17+B18+B19+B20+B21+E16+E17+E18+E19+E20+E21+H16+H17+H18+H19+H20+H21++K16+K17+K18+K19+K20","v":0}]
[]
[]
[]
["I desire to effect All Risk in Transit insurance and I declare the above statements are true and complete and that nothing materially affecting the risk has been concealed by me and that the amounts above stated are the full value of the household moved. I agree that this proposal shall be taken as the basis of the proposed contract between me and insurers and that no payment to the carrier may be withheld, should a claim arise from the transportation of my household and/or effects. I understand and agree to the conditions of insurance enclosed.",{"$nulls":5},"IMPORTANT: It is re-emphasised that the goods must be insured for the full replacement value at destination, as the policy is subject to average, and you will have to bear a proportionate part of any loss and/or damage to articles not insured for their full replacement value. Please remember that the new replacement value at destination may not be more than at country of origin. All certificates of insurance will be issued in ZAR (South African Rand) only. Insurance application forms received in foreign currency will be converted to ZAR (South African Rand) at the exchange rate applicable calculated at the date of the invoiced premium. All claims will be paid in ZAR (South African Rand) based on the exchange rate at the time of the loss/delivery of the consignment. Our representatives do not provide any advice, any information provide is factual and may not be construed as being giving advice.                                                                                                                                                                                                                                                                                                                                                                                                                                      "]
["AN ADDITIONAL VALUED INVENTORYCAN BE ATTACHED                                                                                  (DON’T FORGET TO INCLUDE THE VALUE IN THIS SUMMARY)"]
[{"$nulls":6},"NB: All claims must be reported to OVERSEAS ADMINISTRATION MANAGEMENT who is acting on behalf of the Insurer (Centriq Insurance Company a Licensed non – life and FSP 3417); OAM will be assisting you in the management of your insurance clam. Please send your claim notification within 7-days after the delivery of your items via email to: claimsadministration@overseasam.com in the event of a claim. All claims will be processed promptly & efficiently."]
[]
["DATE ",{"$nulls":5},"GRAND TOTAL TO BE INSURED (ZAR) (VAT EXCLUDED)",null,null,{"$f":"G24*K12","v":{"v":0,"d":"0.00"}}]
["SIGNATURE"]
[]
[]
[]
["Please note that for this Insurance Inventory to be legally binding, you must print out and return a signed hard copy to specific branch. Failure to do so could render your enrolment and insurance cover void."]
[]
["laser_move_en_ins_doc_VALUED INVENTORY_2023_v1",{"$nulls":9},"Page 1 "]

{"sheet":"Rooms","index":1,"n_rows":43,"n_cols":11,"rows_kept":43,"merged":[[2,0,2,2],[2,3,27,3],[2,4,2,6],[2,7,27,7],[2,8,2,10],[15,0,15,2],[28,0,28,2],[28,3,28,7],[29,0,29,2],[29,3,40,3],[29,4,29,6],[29,7,40,7],[30,8,30,10],[31,8,31,10]]}
["ARTICLE","QTY","VALUE",null,"ARTICLE","Qty","VALUE",null,"ARTICLE","Qty","VALUE"]
[]
["A.HALL",{"$nulls":3},"D.KITCHEN",{"$nulls":3},"F.LIVING ROOM"]
["Chest of Drawers",{"$nulls":3},"Cupboard",{"$nulls":3},"Sideboard"]
["Console",{"$nulls":3},"Cupboard",{"$nulls":3},"Wardrobe"]
["Coat Rack",{"$nulls":3},"Chair",{"$nulls":3},"Table"]
["Umbrella stand",{"$nulls":3},"Table",{"$nulls":3},"Trolley"]
["Mirror",{"$nulls":3},"Trolley",{"$nulls":3},"Coffee table",1]
["Carpet",{"$nulls":3},"Stool",{"$nulls":3},"TV stand",1]
["Clock",{"$nulls":3},"Table Bench",{"$nulls":3},"Chair"]
["Picture",{"$nulls":3},"Shelf",{"$nulls":3},"Armchair"]
["Armchair",{"$nulls":3},"Cooker",{"$nulls":3},"Sofa","3- 1 sitter, 2 sitter & 3 sitter "]
["Chair",{"$nulls":3},"Ironing Board",{"$nulls":3},"Rocking Chair"]
["TOTAL A"," ",{"$f":"SUM(C4:C13)","v":0},null,"Bin","Bread bin 1",null,null,"Bean Bag"]
[{"$nulls":4},"Lamp",{"$nulls":3},"Shelf"]
["B.STUDY ROOM",{"$nulls":3},"Chandelier",{"$nulls":3},"Magazine Rack"]
["Desk",{"$nulls":3},"Carpet",{"$nulls":3},"Grandfather clock"]
["Writing Desk",{"$nulls":3},"Plate","1 box",null,null,"Piano"]
["Filing Cabinet",{"$nulls":3},"Bowl","1 box ",null,null,"Chandelier"]
["Chair",{"$nulls":3},"Glass","1 box",null,null,"Lamp"]
["Armchair",{"$nulls":3},"Cutlery",{"$nulls":3},"Picture"]
["Shelf",{"$nulls":3},"Pot",{"$nulls":3},"CD,video holder"]
["Book-case",{"$nulls":3},"Frying-pans",{"$nulls":3},"Book-case"]
["Lamp",{"$nulls":3},"Cake mould",{"$nulls":3},"Carpet",1]
["Carpet",{"$nulls":3},"Various dishes",{"$nulls":3},"Cushion"]
["Picture",{"$nulls":3},"Various utensils",{"$nulls":3},"Aquarium"]
["Paper Basket",{"$nulls":3},"Kitchen linen",{"$nulls":3},"Vase",2]
["TOTAL B"," ",{"$f":"SUM(C17:C27)","v":0},null,"TOTAL D"," ",{"$f":"SUM(G4:G27)","v":0},null,"Decoration"]
[{"$nulls":8},"Mirror"]
["C.DINING ROOM",{"$nulls":3},"E.BATHROOM",{"$nulls":3},"TOTAL F"," ",{"$f":"SUM(K4:K29)","v":0}]
["Sideboard",{"$nulls":3},"Toilet Cabinet"]
["Table",{"$nulls":3},"Drugs Cabine",{"$nulls":3},"G.MISCELLANOUS ITEMS"]
["Trolley",{"$nulls":3},"Towel-rail"]
["Chair",{"$nulls":3},"Bathroom Rug"]
["Armchair",{"$nulls":3},"Mirror"]
["Carpet",{"$nulls":3},"Scales"]
["Picture",{"$nulls":3},"Laundry Basket",2]
["Lamp",{"$nulls":3},"Picture"]
["Chandelier",{"$nulls":3},"Bathroom Linen"]
["Linge de table",{"$nulls":3},"Drying rack"]
["TOTAL C"," ",{"$f":"SUM(C31:C40)","v":0},null,"TOTAL E"," ",{"$f":"SUM(G31:G40)","v":0},null,"TOTAL G"," ",{"$f":"SUM(K33:K40)","v":0}]
[]
["laser_move_en_ins_doc_VALUED INVENTORY_2023_v1",{"$nulls":9},"Page 2"]

{"sheet":"Various 1 ","index":2,"n_rows":61,"n_cols":12,"rows_kept":61,"merged":[[2,0,2,2],[2,3,59,3],[2,4,2,6],[2,7,58,7],[2,8,2,11],[23,8,23,11],[24,8,24,11],[25,8,25,9],[26,8,26,9],[27,0,27,2],[27,8,27,9],[28,0,28,2],[28,8,28,9],[29,8,29,9],[30,8,30,11],[31,8,31,11],[32,8,32,9],[33,8,33,9],[34,8,34,9],[35,8,35,9],[36,8,36,9],[37,8,37,9],[38,8,38,9],[39,8,39,9],[40,8,40,9],[41,8,41,9],[42,8,42,9],[43,8,43,9],[44,8,44,9],[45,8,45,9],[46,8,46,9],[47,8,47,9],[48,8,48,9],[49,0,49,2],[49,8,49,9],[50,0,50,2],[50,8,50,9],[51,8,51,9],[52,8,52,9],[53,8,53,9],[54,8,54,9],[55,8,55,9],[56,8,56,9],[57,8,57,9],[58,8,58,9]]}
["ARTICLE","Qty","VALUE",null,"ARTICLE","Qty","VALUE",null,"ARTICLE","Set","Qty","VALUE"]
[]
["H.MEN'S CLOTHING",{"$nulls":3},"K.ELECTRIC APPLIANCE",{"$nulls":3},"L.PRECIOUS/FRAGILE ITEMS"]
["Suit",{"$nulls":3},"Fridge",1,null,null,"Picture"]
["Jacket",{"$nulls":3},"Freezer",1,null,null,"Engraving"]
["Trousers",{"$nulls":3},"Wine cooler",{"$nulls":3},"Antique Items"]
["Raincoat",{"$nulls":3},"Washing Machine",1,null,null,"Carpet"]
["Coat",{"$nulls":3},"Dryer",{"$nulls":3},"Crystal ware"]
["Coat",{"$nulls":3},"Iron",{"$nulls":3},"China set"]
["Shirt",{"$nulls":3},"Dishwasher",{"$nulls":3},"Silverware"]
["Pullover",{"$nulls":3},"Oven",{"$nulls":3},"Statue"]
["Tie",{"$nulls":3},"Microwave",{"$nulls":3},"Tea set 1"]
["T-shirt",{"$nulls":3},"Vacuum Cleaner",{"$nulls":3},"Tea set 2"]
["Sportswear",{"$nulls":3},"Mixer",{"$nulls":3},"Dinner Service 1"]
["Underwear",{"$nulls":3},"Cooking food processor",{"$nulls":3},"Dinner Service 2"]
["Shoes",{"$nulls":3},"Pressure cooker",{"$nulls":3},"Artworks"]
["Hat",{"$nulls":3},"Coffee Grinder",{"$nulls":3},"Marble Tops"]
["Belt",{"$nulls":3},"Coffee machine",{"$nulls":3},"Marble Table"]
["Night wear",{"$nulls":3},"Toaster",{"$nulls":3},"Glassware"]
[{"$nulls":4},"Kettle","1Hot water urn"]
[{"$nulls":4},"Fryer"]
[{"$nulls":4},"Grill"]
[{"$nulls":4},"Sewing Machine",{"$nulls":3},"TOTAL L",null," ",{"$f":"SUM(L4:L22)","v":0}]
[{"$nulls":4},"Hair Dryer"]
[{"$nulls":4},"Hi-Fi set",{"$nulls":3},"M.HEAVY ITEMS"]
[{"$nulls":4},"CD Player",{"$nulls":3},"Pool table"]
["Total H"," ",{"$f":"SUM(C4:C26)","v":0},null,"Amplifier",{"$nulls":3},"Safe"]
[{"$nulls":4},"Speaker",{"$nulls":3},"Piano"]
["I.WOMAN'S CLOTHING",{"$nulls":3},"Video camera",{"$nulls":3},"American fridge"]
["Suit",{"$nulls":3},"Radio",{"$nulls":3},"TOTAL M",null,null,{"$f":"SUM(L26:L29)","v":0}]
["Skirt",{"$nulls":3},"TV Set & Size",2]
["Jacket",{"$nulls":3},"Soundbar",{"$nulls":3},"N.MISCELLANOUS ITEMS"]
["T-shirt",{"$nulls":3},"Heater",1]
["Blouse",{"$nulls":3},"Computer"]
["Trousers",{"$nulls":3},"Home theatre system",1]
["Evening Dress",{"$nulls":3},"Computer screen/Desktop"]
["Dress",{"$nulls":3},"Computer keyboard + mouse"]
["Pullover",{"$nulls":3},"Printer"]
["Coat",{"$nulls":3},"Photocopier"]
["Raincoat",{"$nulls":3},"Telephone"]
["Coat",{"$nulls":3},"Answering Machine"]
["Fur",{"$nulls":3},"Video games console"]
["Underwear",{"$nulls":3},"Film Projector"]
["Night wear"]
["Belt"]
["Shoes"]
["Hat"]
["Bag"]
["TOTAL I"," ",{"$f":"SUM(C30:C48)","v":0}]
[]
["J.GENERAL "]
["Ornaments"]
["Video,CD"]
["Video games"]
["Books"]
["Linen"]
["Curtains"]
["Lamp Shades"]
["TOTAL J"," ",{"$f":"SUM(C52:C58)","v":0},null,"TOTAL K"," ",{"$f":"SUM(G4:G58)","v":0},null,"TOTAL N",null,null,{"$f":"SUM(L33:L58)","v":0}]
[]
["laser_move_en_ins_doc_VALUED INVENTORY_2023_v1",{"$nulls":10},"Page 3"]

{"sheet":"Bedrooms","index":3,"n_rows":52,"n_cols":11,"rows_kept":52,"merged":[[2,0,2,2],[2,3,49,3],[2,4,2,6],[2,7,49,7],[2,8,2,10]]}
["ARTICLE","Qty","VALUE",null,"ARTICLE","Qty","VALUE",null,"ARTICLE","Qty","VALUE"]
[]
["O.MASTER BEDROOM",{"$nulls":3},"P.CHILD BEDROOM 1",{"$nulls":3},"Q.CHILD BEDROOM 2"]
["Sleeper couch",{"$nulls":3},"Bed","1 Double bed",null,null,"Bed"]
["Bed","1 Queen bed",null,null,"Crib",{"$nulls":3},"Crib"]
["Bed base",1,null,null,"Bed base",1,null,null,"Bed base"]
["Mattress",1,null,null,"Mattress",1,null,null,"Mattress"]
["Headboard",{"$nulls":3},"Headboard",{"$nulls":3},"Headboard"]
["Pillow",{"$nulls":3},"Bunkbed",{"$nulls":3},"Bunkbed"]
["Comforter",{"$nulls":3},"Sleeper couch",{"$nulls":3},"Sleeper couch"]
["Duvet",{"$nulls":3},"Pillow",{"$nulls":3},"Pillow"]
["Chair",{"$nulls":3},"Duvet",{"$nulls":3},"Duvet"]
["Wardrobe",{"$nulls":3},"Blanket/Couverture",{"$nulls":3},"Blanket"]
["Armchair",{"$nulls":3},"Chest of drawers",{"$nulls":3},"Chest of drawers"]
["Table",{"$nulls":3},"Bed side table",{"$nulls":3},"Bed side table"]
["Bed side table",{"$nulls":3},"Comforter",{"$nulls":3},"Comforter"]
["Lamp",{"$nulls":3},"Table",{"$nulls":3},"Table"]
["Dressing table",{"$nulls":3},"Wardrobe",2,null,null,"Wardrobe/Armoire"]
["Mirror",{"$nulls":3},"Shelf/Etagère",{"$nulls":3},"Shelf"]
["Rug",{"$nulls":3},"Book-case",{"$nulls":3},"Book-case"]
["Carpet",{"$nulls":3},"Lamp",{"$nulls":3},"Lamp"]
["Picture",{"$nulls":3},"Toys Chest",{"$nulls":3},"Toys Chest"]
["Chest of drawers","1 Keist ",null,null,"Toys",{"$nulls":3},"Toys"]
["Cushion",{"$nulls":3},"Board games",{"$nulls":3},"Board games"]
["Desk",{"$nulls":3},"Soft toys",{"$nulls":3},"Soft toys"]
[{"$nulls":4},"Play Pen",{"$nulls":3},"Play Pen"]
[{"$nulls":4},"Chair",{"$nulls":3},"Chair"]
[{"$nulls":4},"Carpet",{"$nulls":3},"Carpet"]
[{"$nulls":4},"Changing table",{"$nulls":3},"Changing table"]
[{"$nulls":4},"Nursery set",{"$nulls":3},"Nursery set"]
[{"$nulls":4},"Desk",{"$nulls":3},"Desk"]
[{"$nulls":4},"Picture",{"$nulls":3},"Picture"]
[{"$nulls":4},"Push Chair",{"$nulls":3},"Push Chair"]
[{"$nulls":4},"Child Car seat",{"$nulls":3},"Child Car seat"]
[{"$nulls":4},"Clothes",{"$nulls":3},"Clothes"]
[{"$nulls":4},"Shoes",{"$nulls":3},"Shoes"]
[{"$nulls":4},"Bag",{"$nulls":3},"Bag"]
[{"$nulls":4},"Cushion",{"$nulls":3},"Cushion"]
{"$rows_empty":11}
["TOTAL O"," ",{"$f":"SUM(C4:C49)","v":0},null,"TOTAL P"," ",{"$f":"SUM(G4:G49)","v":0},null,"TOTAL Q"," ",{"$f":"SUM(K4:K49)","v":0}]
[]
["laser_move_en_ins_doc_VALUED INVENTORY_2023_v1",{"$nulls":9},"Page 4"]

{"sheet":"Various 2","index":4,"n_rows":55,"n_cols":11,"rows_kept":55,"merged":[[2,0,2,2],[2,3,52,3],[2,4,2,6],[2,7,52,7],[2,8,2,10],[24,0,24,2],[25,0,25,2],[25,4,25,6],[26,4,26,6],[27,5,27,6],[28,5,28,6],[29,5,29,6],[30,5,30,6],[31,5,31,6],[32,5,32,6],[33,5,33,6],[34,5,34,6],[35,5,35,6],[36,5,36,6],[37,5,37,6],[38,5,38,6],[39,5,39,6],[40,5,40,6],[41,5,41,6],[42,5,42,6],[43,5,43,6],[44,5,44,6],[45,5,45,6],[46,5,46,6],[47,5,47,6],[48,5,48,6],[49,5,49,6],[50,5,50,6],[51,5,51,6],[52,5,52,6]]}
["ARTICLE","Qty","VALUE",null,"ARTICLE","Qty","VALUE",null,"ARTICLE","Qty","VALUE"]
[]
["R.GARDEN",{"$nulls":3},"U.SPORTS GEAR",{"$nulls":3},"W.MISCELLANOUS"]
["Table",{"$nulls":3},"Scooter"]
["Chair",{"$nulls":3},"Electric scooter"]
["Bench",{"$nulls":3},"Kid bicycle"]
["Deck chair",{"$nulls":3},"Mountain bike"]
["Braai Equipment ",{"$nulls":3},"Race bicycle"]
["Garden Umbrella",{"$nulls":3},"Electric bicycle"]
["Trampoline",{"$nulls":3},"Surfboard"]
["Swing",{"$nulls":3},"Ski"]
["Wendyhouse",{"$nulls":3},"Table tennis table"]
["Flower pot",{"$nulls":3},"Helmets"]
["Lawnmower",{"$nulls":3},"Rollers"]
["Garden tools",{"$nulls":3},"Skateboard"]
["Garden Furniture",{"$nulls":3},"Golf clubs"]
["Gazebo",{"$nulls":3},"Golf Caddy"]
[{"$nulls":4},"Golf bag"]
[{"$nulls":4},"Golf drivers"]
[{"$nulls":4},"Kitesurf"]
[]
[]
[]
["TOTAL R"," ",{"$f":"SUM(C4:C23)","v":0}]
[{"$nulls":4},"TOTAL U"," ",{"$f":"SUM(G5:G24)","v":0}]
["S.GARAGE"]
["Toolbox",1,null,null,"V.VEHICLES/ MOTOR CYCLES/ BOATS/ TRAILERS"]
["Various tools",{"$nulls":3},"Vehicle Year"]
["Shelves",{"$nulls":3},"Vehicle Make & Model "]
["Wardrobe",{"$nulls":3},"Vehicle valuation"]
["Trunk",2]
["Suitcase",{"$nulls":3},"Motorcycle Year"]
["Ladder",1,null,null,"Motorcycle Make & Model "]
["Tool Cupboard",{"$nulls":3},"Motorcycle Valuation"]
[]
[{"$nulls":4},"Boat Year"]
["TOTAL S"," ",{"$f":"SUM(C27:C36)","v":0},null,"Boat Make & Model "]
[{"$nulls":4},"Boat Valuation "]
["T.CELLAR"]
["Wardrobe",{"$nulls":3},"Trailer Year"]
["Chest of Drawers",{"$nulls":3},"Trailer Make & Model"]
["Table",{"$nulls":3},"Trailer Valuation "]
["Chair"]
["Trunk"]
["Suitcase"]
["Picture"]
[]
[]
[]
[]
[]
[]
["TOTAL T"," ",{"$f":"SUM(C40:C52)","v":0},null,"TOTAL V",{"$f":"SUM(F28:G52)","v":0},null,null,"TOTAL W"," ",{"$f":"SUM(K4:K52)","v":0}]
[]
["laser_move_en_ins_doc_VALUED INVENTORY_2023_v1",{"$nulls":9},"Page 5"]